fUSD/lending_fUSD_20240607
["ID","MTS","AMOUNT","RATE_DAILY","PERIOD"]
[328763437,1717774244699,-409.35687002,0.00029919,4]
[328763438,1717774244709,-500.0,0.00029919,4]
[328763439,1717774244719,-500.0,0.00029919,4]
[328763440,1717774244730,-500.0,0.00029919,4]
[328763441,1717774244740,-500.0,0.00029919,4]
[328763442,1717774244750,-656.19,0.00029919,4]
[328763443,1717774244760,-500.0,0.00029919,4]
[328763444,1717774244770,-500.0,0.00029919,4]
[328763445,1717774244780,-500.0,0.00029919,4]
[328763446,1717774244791,-500.0,0.00029919,4]
[328763447,1717774244801,-500.0,0.00029919,4]
[328763448,1717774244811,-500.0,0.00029919,4]
[328763449,1717774244820,-500.0,0.00029919,4]
[328763450,1717774244830,-748.4,0.00029919,4]
[328763451,1717774244840,-500.0,0.00029919,4]
[328763452,1717774244851,-500.0,0.00029919,4]
[328763453,1717774244861,-500.0,0.00029919,4]
[328763454,1717774244872,-500.0,0.00029919,4]
[328763455,1717774244882,-500.0,0.00029919,4]
[328763456,1717774244891,-500.0,0.00029919,4]
[328763457,1717774244902,-831.63,0.00029919,4]
[328763458,1717774244920,-500.0,0.00029919,4]
[328763459,1717774244930,-500.0,0.00029919,4]
[328763460,1717774244939,-539.84,0.00029919,4]
[328763461,1717774244949,-500.0,0.00029919,4]
[328763462,1717774244961,-500.0,0.00029919,4]
[328763463,1717774244971,-500.0,0.00029919,4]
[328763464,1717774244980,-500.0,0.00029919,4]
[328763466,1717774244990,-500.0,0.00029919,4]
[328763468,1717774245000,-500.0,0.00029919,4]
[328763470,1717774245010,-205.27522461,0.00029919,4]
[328763471,1717774245020,-1508.87,0.00029919,4]
[328763472,1717774245030,-500.0,0.00029919,4]
[328763473,1717774245041,-500.0,0.00029919,4]
[328763474,1717774245051,-500.0,0.00029919,4]
[328763475,1717774245060,-2317.2,0.00029919,4]
[328763476,1717774245070,-708.426,0.0002992,2]
[328763477,1717774245083,-5141.0,0.0002992,2]
[328763478,1717774245093,-7711.52693114,0.0002992,2]
[328763479,1717774245107,-6861.78495721,0.0002992,2]
[328763480,1717774245126,-686.96294358,0.0002992,2]
[328763481,1717774245139,-1820.11300503,0.0002992,2]
[328763482,1717774245152,-2689.8550103,0.0002992,2]
[328763483,1717774245164,-10509.5628,0.0002992,2]
[328763484,1717774245239,-150.0,0.00029178,2]
[328763485,1717774245249,-458.20625932,0.0002992,2]
[328763486,1717774245264,-3114.17964857,0.0002992,2]
[328763487,1717774245276,-2847.59268996,0.0002992,2]
[328763488,1717774245291,-1315.21575489,0.0002992,2]
[328763489,1717774245301,-203.0,0.0002992,2]
[328763490,1717774245311,-150.0,0.00029924,2]
[328763491,1717774245321,-150.0,0.00029925,2]
[328763492,1717774245331,-158.07721268,0.00029933,2]
[328763493,1717774245340,-240.35858595,0.00029935,2]
[328763494,1717774245350,-207.07611065,0.00029943,2]
[328763495,1717774245360,-150.0,0.00029948,2]
[328763496,1717774245370,-150.0,0.00029952,2]
[328763497,1717774245379,-150.0,0.00029959,2]
[328763498,1717774245389,-150.5,0.0002997,15]
[328763499,1717774245399,-150.5,0.0002997,15]
[328763500,1717774245409,-150.5,0.0002997,15]
[328763501,1717774245419,-150.5,0.0002997,15]
[328763502,1717774245430,-150.0,0.00029974,2]
[328763503,1717774245440,-171.45,0.0002998,15]
[328763504,1717774245450,-18.23781801,0.0002998,15]
[328763508,1717774247111,-422.39,0.00029178,2]
[328763509,1717774247121,-164.1,0.00029178,2]
[328763510,1717774247132,-500.0,0.00029863,4]
[328763511,1717774247142,-132.26218199,0.0002998,15]
[328763512,1717774247152,-150.5,0.0002998,15]
[328763513,1717774247161,-150.5,0.0002998,15]
[328763514,1717774247171,-150.5,0.0002998,15]
[328763515,1717774247181,-150.5,0.0002998,15]
[328763516,1717774247191,-150.5,0.0002998,15]
[328763517,1717774247200,-150.0,0.00029981,2]
[328763518,1717774247209,-150.5,0.0002999,15]
[328763519,1717774247219,-150.5,0.0002999,15]
[328763520,1717774247229,-150.5,0.0002999,15]
[328763521,1717774247238,-150.5,0.0002999,15]
[328763522,1717774247248,-150.5,0.0002999,15]
[328763523,1717774247258,-150.5,0.0002999,15]
[328763524,1717774247267,-150.5,0.0002999,15]
[328763525,1717774247277,-150.5,0.0002999,15]
[328763526,1717774247289,-234.0,0.0002999,15]
[328763527,1717774247298,-500.0,0.0002999,4]
[328763528,1717774247308,-642.51144547,0.0002999,4]
[328763529,1717774247318,-500.0,0.0002999,4]
[328763530,1717774247327,-500.0,0.0002999,4]
[328763531,1717774247338,-500.0,0.0002999,4]
[328763532,1717774247347,-381.97520733,0.0002999,4]
[328763533,1717774247358,-150.0,0.0002999,2]
[328763534,1717774247367,-500.0,0.0002999,4]
[328763535,1717774247378,-823.0,0.0002999,4]
[328763536,1717774247388,-904.35,0.0002999,4]
[328763537,1717774247398,-500.0,0.0002999,4]
[328763538,1717774247408,-791.65779001,0.0002999,4]
[328763539,1717774247420,-0.27220999,0.0002999,4]
[328763540,1717774247430,-355.79279001,0.00029993,4]
[328763541,1717774247443,-144.20720999,0.00029993,4]
[328763542,1717774247452,-399.02425654,0.00029993,4]
[328763543,1717774247465,-585.73574346,0.00029993,4]
[328763544,1717774247475,-500.0,0.00029993,4]
[328763545,1717774247485,-424.68897543,0.00029993,4]
[328763546,1717774247515,-75.31102457,0.00029993,4]
[328763547,1717774247525,-500.0,0.00029993,4]
[328763548,1717774247536,-500.0,0.00029993,4]
[328763549,1717774247546,-500.0,0.00029993,4]
[328763550,1717774247556,-500.0,0.00029993,4]
[328763551,1717774247566,-500.0,0.00029993,4]
[328763552,1717774247576,-555.88,0.00029993,4]
[328763553,1717774247586,-29902.29448522,0.00029994,4]
[328763554,1717774247596,-500.0,0.00029994,4]
[328763555,1717774247606,-500.0,0.00029994,4]
[328763556,1717774247616,-500.0,0.00029994,4]
[328763557,1717774247626,-500.0,0.00029994,4]
[328763558,1717774247636,-500.0,0.00029994,4]
[328763559,1717774247646,-75.12096419,0.00029994,4]
[328763560,1717774324203,363.7,0.0003,120]
[328763565,1717775001742,-150.0,0.00029955,27]
[328763566,1717775036014,600.0,0.0003,40]
[328763567,1717775373146,-155.0,0.00017175,2]
[328763568,1717775373167,-411.12616502,0.00017175,2]
[328763569,1717775373187,-327.03263673,0.00017175,2]
[328763570,1717775373206,-156.53865947,0.00017176,2]
[328763571,1717775373230,-94.92372346,0.00017176,2]
[328763594,1717775431619,-158.2910291,0.00017172,2]
[328763595,1717775431629,-658.7426153,0.00017173,2]
[328763596,1717775431639,-250.84971858,0.00017173,2]
[328763597,1717775431648,-2821.19405743,0.00017173,2]
[328763598,1717775431658,-506.54758575,0.00017174,2]
[328763599,1717775431669,-155.0,0.00017175,2]
[328763600,1717775431679,-5885.29314931,0.00017176,2]
[328763601,1717775431691,-1652.42526273,0.00017176,2]
[328763602,1717775431700,-531.15011943,0.00017254,2]
[328763603,1717775431710,-6256.82921341,0.00017255,2]
[328763604,1717775431727,-6207.75087403,0.00017255,2]
[328763605,1717775431736,-1421.11832597,0.00017256,2]
[328763606,1717775431771,-1066.23560414,0.00017256,2]
[328763607,1717775431781,-2869.35500047,0.00017257,2]
[328763608,1717775431849,-4670.58486384,0.00017257,2]
[328763609,1717775431860,-150.99,0.00017257,2]
[328763610,1717775431870,-5302.97258211,0.0002,2]
[328763611,1717775431881,-347.37,0.00022164,2]
[328763612,1717775431891,-23632.49432419,0.00024,3]
[328763613,1717775431900,-3820.0,0.00024,3]
[328763614,1717775431910,-308.89,0.0002413,2]
[328763615,1717775431920,-347.37,0.00024427,2]
[328763616,1717775431930,-250.0,0.0002453,2]
[328763617,1717775431939,-23900.0,0.00024731,2]
[328763618,1717775431950,-206.98,0.00024797,2]
[328763619,1717775431960,-1000.0,0.00024965,2]
[328763620,1717775431970,-250.0,0.00025014,2]
[328763621,1717775431979,-296.07,0.00025285,2]
[328763622,1717775431988,-300.0,0.000255,2]
[328763623,1717775432000,-152.0,0.00025626,3]
[328763624,1717775432010,-2055.69464172,0.00026624,2]
[328763625,1717775432022,-401.49423699,0.00026625,2]
[328763626,1717775432033,-347.37,0.00026691,2]
[328763627,1717775432043,-180.0,0.00027336,2]
[328763628,1717775432053,-180.686068,0.00027732,2]
[328763629,1717775432065,-279.839324,0.00027732,2]
[328763630,1717775432075,-557.83,0.0002789,10]
[328763631,1717775432084,-464.86,0.0002789,10]
[328763633,1717775432095,-5678.96102174,0.000279,10]
[328763635,1717775432104,-279.839324,0.00028079,2]
[328763637,1717775432113,-1000.0,0.00028086,2]
[328763639,1717775432123,-165.6,0.00028119,2]
[328763641,1717775432132,-180.686068,0.00028195,2]
[328763642,1717775432166,-422.39,0.00028356,2]
[328763643,1717775432175,-150.0,0.00028356,2]
[328763644,1717775432185,-164.1,0.00028356,2]
[328763645,1717775432194,-422.39,0.00028356,2]
[328763646,1717775432205,-150.0,0.00028356,2]
[328763647,1717775432215,-164.1,0.00028356,2]
[328763648,1717775432226,-422.39,0.00028356,2]
[328763649,1717775432237,-150.0,0.00028356,2]
[328763650,1717775432259,-422.39,0.00028356,2]
[328763651,1717775432274,-150.0,0.00028356,2]
[328763652,1717775432287,-422.39,0.00028356,2]
[328763653,1717775432296,-150.0,0.00028356,2]
[328763654,1717775432306,-422.39,0.00028356,2]
[328763655,1717775432318,-150.0,0.00028356,2]
[328763656,1717775432327,-150.0,0.00028356,2]
[328763657,1717775432337,-419.54,0.00028356,2]
[328763658,1717775432347,-150.0,0.00028356,2]
[328763659,1717775432359,-279.839324,0.00028426,2]
[328763660,1717775432370,-180.686068,0.00028657,2]
[328763661,1717775432381,-152.0,0.00028695,4]
[328763662,1717775432392,-3704.2964,0.000287,2]
[328763663,1717775432403,-1093.41188268,0.000287,2]
[328763664,1717775432414,-278.13569661,0.000287,2]
[328763665,1717775432424,-279.839324,0.00028772,2]
[328763666,1717775432434,-3299.7498,0.000288,2]
[328763667,1717775432444,-38207.1888,0.000288,2]
[328763668,1717775432455,-40996.3989,0.000288,2]
[328763669,1717775432465,-325.42886537,0.000288,2]
[328763670,1717775432476,-1093.41188266,0.00028833,2]
[328763671,1717775432486,-278.13569659,0.00028833,2]
[328763672,1717775432495,-284.40126792,0.00028855,2]
[328763673,1717775432505,-152.33,0.0002889,2]
[328763674,1717775432514,-245000.0,0.000289,2]
[328763675,1717775432525,-347.37,0.00028955,2]
[328763676,1717775432534,-1093.41188266,0.00028967,2]
[328763677,1717775432545,-278.13569659,0.00028967,2]
[328763678,1717775432555,-1000.0,0.00029,5]
[328763679,1717775432565,-741.13628741,0.00029,2]
[328763680,1717775432576,-1488.04610395,0.00029,2]
[328763681,1717775432586,-1093.41188266,0.000291,15]
[328763682,1717775432596,-278.13569659,0.000291,15]
[328763683,1717775432606,-284.4012679,0.00029116,2]
[328763684,1717775432616,-180.686068,0.00029119,2]
[328763685,1717775432626,-279.839324,0.00029119,2]
[328763686,1717775432636,-1093.41188266,0.00029233,15]
[328763687,1717775432646,-278.13569659,0.00029233,15]
[328763688,1717775432656,-150.33054572,0.00029346,2]
[328763689,1717775432665,-150.33054572,0.00029351,2]
[328763690,1717775432675,-1093.41188266,0.00029367,15]
[328763691,1717775432684,-278.13569659,0.00029367,15]
[328763692,1717775432694,-284.4012679,0.00029377,2]
[328763693,1717775432704,-155.0,0.00029398,2]
[328763694,1717775432714,-213.43082969,0.00029434,2]
[328763695,1717775432724,-150.33054572,0.00029437,2]
[328763696,1717775432734,-156.02019916,0.00029442,2]
[328763697,1717775432743,-155.24905604,0.00029449,2]
[328763698,1717775432753,-155.10720857,0.00029452,2]
[328763699,1717775432763,-184.46794329,0.0002947,2]
[328763700,1717775432773,-150.33054572,0.00029475,2]
[328763701,1717775432783,-2087.90124239,0.00029489,2]
[328763702,1717775432792,-1093.41188266,0.000295,15]
[328763703,1717775432803,-65718.0,0.000295,4]
[328763704,1717775432813,-278.13569659,0.000295,15]
[328763705,1717775432823,-154.83037785,0.00029566,2]
[328763706,1717775432832,-155.21455257,0.00029615,2]
[328763707,1717775432842,-167.26,0.00029619,6]
[328763708,1717775432852,-155.24905604,0.00029623,2]
[328763709,1717775432862,-1093.41188266,0.00029633,15]
[328763710,1717775432871,-278.13569659,0.00029633,15]
[328763711,1717775432881,-284.4012679,0.00029638,2]
[328763712,1717775432891,-184.46794329,0.00029685,2]
[328763713,1717775432900,-150.33054572,0.00029694,2]
[328763714,1717775432910,-184.46794329,0.00029709,2]
[328763715,1717775432920,-154.33602077,0.00029711,2]
[328763716,1717775432929,-155.10852869,0.00029713,2]
[328763717,1717775432939,-155.10720857,0.0002972,2]
[328763718,1717775432950,-154.83037785,0.00029749,2]
[328763719,1717775432960,-500.0,0.00029755,2]
[328763720,1717775432971,-213.43082969,0.00029761,2]
[328763721,1717775432980,-1093.41188266,0.00029767,15]
[328763722,1717775432990,-278.13569659,0.00029767,15]
[328763723,1717775433000,-161.32297361,0.00029767,2]
[328763724,1717775433010,-500.0,0.00029784,2]
[328763725,1717775433020,-304.15915553,0.00029785,2]
[328763726,1717775433031,-1000.0,0.000298,2]
[328763727,1717775433041,-184.46794329,0.00029819,2]
[328763728,1717775433051,-163.87867132,0.00029853,2]
[328763729,1717775433061,-156.11987573,0.00029856,2]
[328763730,1717775433072,-500.0,0.00029862,4]
[328763731,1717775433082,-500.0,0.00029862,4]
[328763732,1717775433092,-500.0,0.00029862,4]
[328763733,1717775433102,-500.0,0.00029863,4]
[328763734,1717775433111,-267.66390169,0.00029863,4]
[328763735,1717775433121,-500.0,0.00029863,4]
[328763736,1717775433130,-500.0,0.00029863,4]
[328763737,1717775433148,-500.0,0.00029863,4]
[328763738,1717775433157,-542.75277254,0.00029863,4]
[328763739,1717775433168,-500.0,0.00029863,4]
[328763740,1717775433177,-500.0,0.00029863,4]
[328763741,1717775433187,-500.0,0.00029863,4]
[328763742,1717775433196,-500.0,0.00029863,4]
[328763743,1717775433207,-558.78225345,0.00029863,4]
[328763744,1717775433216,-596.48664302,0.00029863,4]
[328763745,1717775433225,-500.0,0.00029863,4]
[328763746,1717775433235,-500.0,0.00029863,4]
[328763747,1717775433245,-500.0,0.00029863,4]
[328763748,1717775433255,-500.0,0.00029863,4]
[328763749,1717775433266,-500.0,0.00029863,4]
[328763750,1717775433281,-500.0,0.00029863,4]
[328763751,1717775433292,-500.0,0.00029863,4]
[328763752,1717775433302,-437.44972594,0.00029863,4]
[328763753,1717775433314,-500.0,0.00029863,4]
[328763754,1717775433325,-500.0,0.00029863,4]
[328763755,1717775433337,-500.0,0.00029863,4]
[328763756,1717775433349,-500.86,0.00029863,4]
[328763757,1717775433360,-500.86,0.00029863,4]
[328763758,1717775433370,-500.86,0.00029863,4]
[328763759,1717775433380,-500.0,0.00029863,4]
[328763760,1717775433389,-500.0,0.00029863,4]
[328763761,1717775433399,-500.0,0.00029863,4]
[328763762,1717775433409,-500.0,0.00029863,4]
[328763763,1717775433419,-500.0,0.00029863,4]
[328763764,1717775433428,-500.0,0.00029863,4]
[328763765,1717775433438,-500.0,0.00029863,4]
[328763766,1717775433448,-500.0,0.00029863,4]
[328763767,1717775433457,-500.0,0.00029863,4]
[328763768,1717775433467,-500.0,0.00029863,4]
[328763769,1717775433476,-500.0,0.00029863,4]
[328763770,1717775433486,-500.0,0.00029863,4]
[328763771,1717775433495,-500.0,0.00029863,4]
[328763772,1717775433504,-500.0,0.00029863,4]
[328763773,1717775433514,-500.0,0.00029863,4]
[328763774,1717775433524,-500.0,0.00029863,4]
[328763775,1717775433533,-500.0,0.00029863,4]
[328763776,1717775433543,-500.0,0.00029863,4]
[328763777,1717775433553,-500.0,0.00029863,4]
[328763778,1717775433563,-500.0,0.00029863,4]
[328763779,1717775433572,-500.0,0.00029863,4]
[328763780,1717775433582,-500.0,0.00029863,4]
[328763781,1717775433592,-500.0,0.00029863,4]
[328763782,1717775433602,-500.0,0.00029863,4]
[328763783,1717775433611,-500.0,0.00029863,4]
[328763784,1717775433621,-500.0,0.00029863,4]
[328763785,1717775433631,-500.0,0.00029863,4]
[328763786,1717775433640,-500.0,0.00029863,4]
[328763787,1717775433650,-500.0,0.00029863,4]
[328763788,1717775433660,-500.0,0.00029863,4]
[328763789,1717775433670,-500.0,0.00029863,4]
[328763790,1717775433679,-575.84104747,0.00029863,4]
[328763791,1717775433690,-500.0,0.00029863,4]
[328763792,1717775433699,-500.0,0.00029863,4]
[328763793,1717775433708,-500.0,0.00029863,4]
[328763794,1717775433718,-500.0,0.00029863,4]
[328763795,1717775433727,-164.45,0.00029863,4]
[328763796,1717775433737,-362.57576681,0.00029863,4]
[328763797,1717775433747,-500.0,0.00029863,4]
[328763798,1717775433757,-500.0,0.00029863,4]
[328763799,1717775433767,-500.0,0.00029863,4]
[328763800,1717775433776,-286.78630768,0.00029863,4]
[328763801,1717775433786,-500.0,0.00029863,4]
[328763802,1717775433795,-500.0,0.00029863,4]
[328763803,1717775433805,-500.0,0.00029863,4]
[328763804,1717775433815,-500.0,0.00029863,4]
[328763805,1717775433825,-500.0,0.00029863,4]
[328763806,1717775433835,-500.0,0.00029863,4]
[328763807,1717775433844,-348.64,0.00029863,4]
[328763808,1717775433854,-500.0,0.00029863,4]
[328763809,1717775433864,-500.0,0.00029863,4]
[328763810,1717775433873,-500.0,0.00029863,4]
[328763811,1717775433883,-500.0,0.00029863,4]
[328763812,1717775433892,-500.0,0.00029863,4]
[328763813,1717775433902,-167.82,0.00029863,4]
[328763814,1717775433911,-500.0,0.00029863,4]
[328763815,1717775433921,-509.5242978,0.00029863,4]
[328763816,1717775433931,-500.0,0.00029863,4]
[328763817,1717775433940,-332.09166893,0.00029863,4]
[328763818,1717775433950,-500.0,0.00029863,4]
[328763819,1717775433960,-500.0,0.00029863,4]
[328763820,1717775433970,-500.0,0.00029863,4]
[328763821,1717775433979,-500.0,0.00029863,4]
[328763822,1717775433989,-441.65928745,0.00029863,4]
[328763823,1717775433999,-500.0,0.00029863,4]
[328763824,1717775434008,-500.0,0.00029863,4]
[328763825,1717775434018,-164.88154297,0.00029863,4]
[328763826,1717775434028,-500.0,0.00029863,4]
[328763827,1717775434037,-500.0,0.00029863,4]
[328763828,1717775434047,-187.68935479,0.00029863,4]
[328763829,1717775434057,-500.0,0.00029863,4]
[328763830,1717775434067,-500.0,0.00029863,4]
[328763831,1717775434076,-594.10080176,0.00029863,4]
[328763832,1717775434086,-500.0,0.00029863,4]
[328763833,1717775434096,-500.0,0.00029863,4]
[328763834,1717775434105,-500.0,0.00029863,4]
[328763835,1717775434116,-500.0,0.00029863,4]
[328763836,1717775434125,-500.0,0.00029863,4]
[328763837,1717775434135,-500.0,0.00029863,4]
[328763838,1717775434144,-500.0,0.00029863,4]
[328763839,1717775434154,-500.0,0.00029863,4]
[328763840,1717775434163,-500.0,0.00029863,4]
[328763841,1717775434173,-579.38,0.00029863,4]
[328763842,1717775434183,-500.0,0.00029863,4]
[328763843,1717775434194,-500.0,0.00029863,4]
[328763844,1717775434203,-500.0,0.00029863,4]
[328763845,1717775434213,-500.0,0.00029863,4]
[328763846,1717775434222,-583.07133229,0.00029863,4]
[328763847,1717775434232,-500.0,0.00029863,4]
[328763848,1717775434242,-500.0,0.00029863,4]
[328763849,1717775434252,-267.55,0.00029863,4]
[328763850,1717775434262,-500.0,0.00029863,4]
[328763851,1717775434272,-500.0,0.00029863,4]
[328763852,1717775434288,-500.0,0.00029863,4]
[328763853,1717775434297,-500.0,0.00029863,4]
[328763854,1717775434307,-500.0,0.00029863,4]
[328763855,1717775434318,-500.0,0.00029863,4]
[328763856,1717775434327,-500.0,0.00029863,4]
[328763857,1717775434337,-650.45,0.00029863,4]
[328763858,1717775434347,-650.45,0.00029863,4]
[328763859,1717775434359,-650.45,0.00029863,4]
[328763860,1717775434368,-500.0,0.00029863,4]
[328763861,1717775434378,-500.0,0.00029863,4]
[328763862,1717775434388,-500.0,0.00029863,4]
[328763863,1717775434398,-500.0,0.00029863,4]
[328763864,1717775434408,-500.0,0.00029863,4]
[328763865,1717775434418,-349.5119632,0.00029863,4]
[328763866,1717775434428,-500.0,0.00029863,4]
[328763867,1717775434438,-500.0,0.00029863,4]
[328763868,1717775434448,-500.0,0.00029863,4]
[328763869,1717775434458,-500.0,0.00029863,4]
[328763870,1717775434467,-500.0,0.00029863,4]
[328763871,1717775434477,-500.0,0.00029863,4]
[328763872,1717775434487,-500.0,0.00029863,4]
[328763873,1717775434497,-500.0,0.00029863,4]
[328763874,1717775434507,-500.0,0.00029863,4]
[328763875,1717775434516,-500.0,0.00029863,4]
[328763876,1717775434527,-500.0,0.00029863,4]
[328763877,1717775434727,-500.0,0.00029863,4]
[328763878,1717775434737,-500.0,0.00029863,4]
[328763879,1717775434747,-500.0,0.00029863,4]
[328763880,1717775434757,-252.32,0.00029863,4]
[328763881,1717775434766,-500.0,0.00029863,4]
[328763882,1717775434776,-500.0,0.00029863,4]
[328763883,1717775434786,-500.0,0.00029863,4]
[328763884,1717775434796,-279.23459306,0.00029863,4]
[328763885,1717775434806,-500.0,0.00029863,4]
[328763886,1717775434816,-500.0,0.00029863,4]
[328763887,1717775434825,-510.53680889,0.00029863,4]
[328763888,1717775434835,-500.0,0.00029863,4]
[328763889,1717775434845,-500.0,0.00029863,4]
[328763890,1717775434855,-500.0,0.00029863,4]
[328763891,1717775434865,-500.0,0.00029863,4]
[328763892,1717775434874,-500.0,0.00029863,4]
[328763893,1717775434884,-500.0,0.00029863,4]
[328763894,1717775434894,-500.0,0.00029863,4]
[328763895,1717775434905,-500.0,0.00029863,4]
[328763896,1717775434915,-272.37,0.00029863,4]
[328763897,1717775434924,-500.0,0.00029863,4]
[328763898,1717775434935,-500.0,0.00029863,4]
[328763899,1717775434945,-500.0,0.00029863,4]
[328763900,1717775434955,-182.9,0.00029863,4]
[328763901,1717775434964,-541.54190256,0.00029863,4]
[328763902,1717775434975,-500.0,0.00029863,4]
[328763903,1717775434987,-500.0,0.00029863,4]
[328763904,1717775434996,-500.0,0.00029863,4]
[328763905,1717775435006,-469.47,0.00029863,4]
[328763906,1717775435016,-500.0,0.00029863,4]
[328763907,1717775435027,-500.0,0.00029863,4]
[328763908,1717775435036,-500.0,0.00029863,4]
[328763909,1717775435047,-586.22880447,0.00029863,4]
[328763910,1717775435056,-2270.62,0.00029863,4]
[328763911,1717775435067,-2270.62,0.00029863,4]
[328763912,1717775435076,-500.0,0.00029863,4]
[328763913,1717775435086,-500.0,0.00029863,4]
[328763914,1717775435096,-565.29475714,0.00029863,4]
[328763915,1717775435106,-500.0,0.00029863,4]
[328763916,1717775435116,-500.0,0.00029863,4]
[328763917,1717775435125,-328.52475985,0.00029863,4]
[328763918,1717775435147,-305.35524015,0.00029863,4]
[328763919,1717775435157,-601.32952637,0.00029863,4]
[328763920,1717775435166,-500.0,0.00029863,4]
[328763921,1717775435176,-500.0,0.00029863,4]
[328763922,1717775435185,-500.0,0.00029863,4]
[328763923,1717775435195,-500.0,0.00029863,4]
[328763924,1717775435205,-500.0,0.00029863,4]
[328763925,1717775435215,-500.0,0.00029863,4]
[328763926,1717775435224,-500.0,0.00029863,4]
[328763927,1717775435234,-500.0,0.00029863,4]
[328763928,1717775435243,-380.77061427,0.00029863,4]
[328763929,1717775435256,-119.22938573,0.00029863,4]
[328763930,1717775435266,-500.0,0.00029863,4]
[328763931,1717775435280,-500.0,0.00029863,4]
[328763932,1717775435290,-500.0,0.00029863,4]
[328763933,1717775435299,-500.0,0.00029863,4]
[328763934,1717775435309,-500.0,0.00029863,4]
[328763935,1717775435320,-500.0,0.00029863,4]
[328763936,1717775435330,-500.0,0.00029863,4]
[328763937,1717775435339,-500.0,0.00029863,4]
[328763938,1717775435349,-512.75770186,0.00029863,4]
[328763939,1717775435361,-500.0,0.00029863,4]
[328763940,1717775435371,-500.0,0.00029863,4]
[328763941,1717775435381,-500.0,0.00029863,4]
[328763942,1717775435391,-500.0,0.00029863,4]
[328763943,1717775435401,-500.0,0.00029863,4]
[328763944,1717775435410,-500.0,0.00029863,4]
[328763945,1717775435420,-500.0,0.00029863,4]
[328763946,1717775435430,-218.72,0.00029863,4]
[328763947,1717775435440,-500.0,0.00029863,4]
[328763948,1717775435450,-466.61,0.00029863,4]
[328763949,1717775435460,-500.0,0.00029863,4]
[328763950,1717775435470,-500.0,0.00029863,4]
[328763951,1717775435480,-310.0,0.00029863,4]
[328763952,1717775435490,-223.83,0.00029863,4]
[328763953,1717775435499,-217.11,0.00029863,4]
[328763954,1717775435509,-500.0,0.00029863,2]
[328763955,1717775435518,-500.0,0.00029863,2]
[328763956,1717775435529,-500.0,0.00029863,2]
[328763957,1717775435538,-500.0,0.00029863,4]
[328763958,1717775435548,-642.27,0.00029863,4]
[328763959,1717775435558,-500.0,0.00029863,4]
[328763960,1717775435567,-500.0,0.00029863,4]
[328763961,1717775435577,-500.0,0.00029863,4]
[328763962,1717775435587,-500.0,0.00029863,4]
[328763963,1717775435596,-500.0,0.00029863,4]
[328763964,1717775435606,-636.80016338,0.00029863,4]
[328763965,1717775435616,-500.0,0.00029863,4]
[328763966,1717775435626,-500.0,0.00029863,4]
[328763967,1717775435635,-500.0,0.00029863,4]
[328763968,1717775435645,-500.0,0.00029863,4]
[328763969,1717775435655,-359.25,0.00029863,4]
[328763970,1717775435664,-834.76,0.00029863,4]
[328763971,1717775435674,-834.76,0.00029863,4]
[328763972,1717775435684,-291.84012637,0.00029863,4]
[328763973,1717775435694,-242.30026404,0.00029863,4]